[Event "Early-Titled-Tuesday-Blitz-March-19-2024"]
[Site "Chess.com"]
[Date "2024.03.19"]
[Round "10"]
[White "RedFirePanda"]
[Black "diamonds13"]
[Result "1-0"]
[WhiteElo "2542"]
[BlackElo "2346"]
[TimeControl "180+1"]
[EndTime "9:56:22 PDT"]
[Termination "RedFirePanda won by resignation"]

1. d4 {[%clk 0:03:00.9]} 1... Nf6 {[%clk 0:02:47.9]} 2. Bf4 {[%clk 0:02:59]}
2... c5 {[%clk 0:02:46.2]} 3. c3 {[%clk 0:02:51.3]} 3... g6 {[%clk 0:02:45]} 4.
e3 {[%clk 0:02:50.3]} 4... Bg7 {[%clk 0:02:45.1]} 5. Nd2 {[%clk 0:02:50.5]} 5...
cxd4 {[%clk 0:02:44.7]} 6. exd4 {[%clk 0:02:49.8]} 6... O-O {[%clk 0:02:44.9]}
7. Ngf3 {[%clk 0:02:47.8]} 7... d6 {[%clk 0:02:45.2]} 8. h3 {[%clk 0:02:47.1]}
8... a6 {[%clk 0:02:43.3]} 9. Be2 {[%clk 0:02:47.3]} 9... b5 {[%clk 0:02:43.4]}
10. O-O {[%clk 0:02:47.4]} 10... Bb7 {[%clk 0:02:43.5]} 11. Re1 {[%clk
0:02:47.4]} 11... Nc6 {[%clk 0:02:42.1]} 12. Bf1 {[%clk 0:02:39.9]} 12... Re8
{[%clk 0:02:40.9]} 13. a4 {[%clk 0:02:28.7]} 13... b4 {[%clk 0:02:40.9]} 14. Qb3
{[%clk 0:02:16.4]} 14... Na5 {[%clk 0:02:32.9]} 15. Qc2 {[%clk 0:02:03.1]} 15...
Rc8 {[%clk 0:02:31.7]} 16. Bg3 {[%clk 0:01:45]} 16... bxc3 {[%clk 0:02:21.8]}
17. bxc3 {[%clk 0:01:44.5]} 17... Nd5 {[%clk 0:02:21.1]} 18. c4 {[%clk
0:01:39.9]} 18... Nb4 {[%clk 0:02:17.2]} 19. Qb2 {[%clk 0:01:39.1]} 19... Bxf3
{[%clk 0:02:10.9]} 20. Nxf3 {[%clk 0:01:25.3]} 20... Nbc6 {[%clk 0:02:09.6]} 21.
Rac1 {[%clk 0:01:23]} 21... Rb8 {[%clk 0:01:54.7]} 22. Qc3 {[%clk 0:01:20]}
22... Nb3 {[%clk 0:01:52.4]} 23. Rcd1 {[%clk 0:01:19.7]} 23... Qb6 {[%clk
0:01:50.4]} 24. c5 {[%clk 0:01:16.2]} 24... dxc5 {[%clk 0:01:49.8]} 25. Bxb8
{[%clk 0:01:12.9]} 25... cxd4 {[%clk 0:01:44.9]} 26. Qd3 {[%clk 0:00:35.7]}
26... Rxb8 {[%clk 0:01:43.3]} 27. Qxa6 {[%clk 0:00:33.9]} 27... Qxa6 {[%clk
0:01:33.3]} 28. Bxa6 {[%clk 0:00:34.8]} 28... e5 {[%clk 0:01:33.2]} 29. Bb5
{[%clk 0:00:30]} 29... Nba5 {[%clk 0:01:31.2]} 30. Rc1 {[%clk 0:00:25.8]} 30...
Rb6 {[%clk 0:01:04]} 31. Rc5 {[%clk 0:00:25.8]} 31... f6 {[%clk 0:00:59.9]} 32.
Rec1 {[%clk 0:00:14.7]} 32... Ne7 {[%clk 0:00:57]} 33. Rc7 {[%clk 0:00:12.3]}
33... Bf8 {[%clk 0:00:56]} 34. Ra7 {[%clk 0:00:11.3]} 34... Nb3 {[%clk
0:00:55.7]} 35. Rcc7 {[%clk 0:00:10.2]} 35... e4 {[%clk 0:00:52.1]} 36. Ne1
{[%clk 0:00:06.1]} 36... Rd6 {[%clk 0:00:38.5]} 37. Rd7 {[%clk 0:00:04.2]} 37...
Rxd7 {[%clk 0:00:38.1]} 38. Rxd7 {[%clk 0:00:05.1]} 38... Kg7 {[%clk 0:00:29.9]}
39. Rd8 {[%clk 0:00:03.9]} 39... Nf5 {[%clk 0:00:19.5]} 40. g4 {[%clk
0:00:02.7]} 40... Nh4 {[%clk 0:00:18.4]} 41. Bc4 {[%clk 0:00:02.3]} 41... Na5
{[%clk 0:00:15.7]} 42. Rxd4 {[%clk 0:00:02.8]} 42... Bc5 {[%clk 0:00:15.8]} 43.
Rxe4 {[%clk 0:00:03.1]} 43... f5 {[%clk 0:00:13.7]} 44. gxf5 {[%clk 0:00:03.5]}
44... gxf5 {[%clk 0:00:13.9]} 45. Rxh4 {[%clk 0:00:03.5]} 45... Kf6 {[%clk
0:00:13.1]} 46. Bb5 {[%clk 0:00:03.9]} 46... Ke5 {[%clk 0:00:13.3]} 47. Rxh7
{[%clk 0:00:04.2]} 47... Nb3 {[%clk 0:00:12.8]} 48. Nd3+ {[%clk 0:00:04.4]}
48... Kd4 {[%clk 0:00:12.5]} 49. Nxc5 {[%clk 0:00:05.3]} 49... Kxc5 {[%clk
0:00:13.1]} 50. Kg2 {[%clk 0:00:06.2]} 50... Nd4 {[%clk 0:00:13.1]} 51. Rf7
{[%clk 0:00:06.4]} 51... Kb6 {[%clk 0:00:12.4]} 52. h4 {[%clk 0:00:06.8]} 52...
Ka5 {[%clk 0:00:12.6]} 53. h5 {[%clk 0:00:07.3]} 53... Ne6 {[%clk 0:00:13.2]}
54. Rxf5 {[%clk 0:00:07.2]} 54... Nd4 {[%clk 0:00:12.9]} 55. Rg5 {[%clk
0:00:06.1]} 55... Ne6 {[%clk 0:00:12.7]} 56. Rg6 {[%clk 0:00:06.7]} 56... Nf4+
{[%clk 0:00:13]} 57. Kg3 {[%clk 0:00:05.8]} 57... Nxg6 {[%clk 0:00:13.4]} 58.
hxg6 {[%clk 0:00:06.7]} 58... Kb6 {[%clk 0:00:13.9]} 59. g7 {[%clk 0:00:06.9]}
59... Ka5 {[%clk 0:00:13.7]} 60. g8=Q {[%clk 0:00:06.9]} 60... Kb6 {[%clk
0:00:13.6]} 61. Qc4 {[%clk 0:00:06]} 61... Ka5 {[%clk 0:00:14.1]} 62. Qc6 {[%clk
0:00:06.1]} 62... Kb4 {[%clk 0:00:14.4]} 63. Qb6 {[%clk 0:00:06.3]} 63... Ka3
{[%clk 0:00:14.4]} 64. a5 {[%clk 0:00:06.6]} 64... Kb4 {[%clk 0:00:14.3]} 65. a6
{[%clk 0:00:07.5]} 65... Kc3 {[%clk 0:00:14.6]} 66. a7 {[%clk 0:00:08.4]} 1-0

[Event "Early-Titled-Tuesday-Blitz-March-19-2024"]
[Site "Chess.com"]
[Date "2024.03.19"]
[Round "10"]
[White "djokovic74"]
[Black "JonasEilenberg"]
[Result "1-0"]
[WhiteElo "2729"]
[BlackElo "2564"]
[TimeControl "180+1"]
[EndTime "9:56:26 PDT"]
[Termination "djokovic74 won by resignation"]

1. c4 {[%clk 0:03:00.8]} 1... e6 {[%clk 0:02:59.2]} 2. Nf3 {[%clk 0:03:00.3]}
2... d5 {[%clk 0:02:59.8]} 3. g3 {[%clk 0:03:00.9]} 3... dxc4 {[%clk 0:02:59.5]}
4. Bg2 {[%clk 0:02:59.3]} 4... Nf6 {[%clk 0:02:59.4]} 5. O-O {[%clk 0:02:59]}
5... Nbd7 {[%clk 0:02:58.2]} 6. Qa4 {[%clk 0:02:58.2]} 6... a6 {[%clk
0:02:58.5]} 7. Qxc4 {[%clk 0:02:58.3]} 7... b5 {[%clk 0:02:59.1]} 8. Qc2 {[%clk
0:02:58.9]} 8... Bb7 {[%clk 0:02:59.7]} 9. d3 {[%clk 0:02:57.1]} 9... c5 {[%clk
0:03:00.2]} 10. Nc3 {[%clk 0:02:56.9]} 10... Be7 {[%clk 0:03:00.4]} 11. b3
{[%clk 0:02:54.3]} 11... O-O {[%clk 0:03:00.5]} 12. Bb2 {[%clk 0:02:54.8]} 12...
Rc8 {[%clk 0:03:01.1]} 13. Rfd1 {[%clk 0:02:53.4]} 13... Qb6 {[%clk 0:03:01.6]}
14. Rac1 {[%clk 0:02:52.2]} 14... Rfd8 {[%clk 0:03:02]} 15. h3 {[%clk
0:02:51.7]} 15... Nb8 {[%clk 0:03:02.1]} 16. e3 {[%clk 0:02:45.8]} 16... Nc6
{[%clk 0:02:59.3]} 17. a3 {[%clk 0:02:46.2]} 17... Rd7 {[%clk 0:02:56.9]} 18.
Ne2 {[%clk 0:02:26]} 18... Rcd8 {[%clk 0:02:55.5]} 19. Nf4 {[%clk 0:02:26.2]}
19... h6 {[%clk 0:02:38]} 20. d4 {[%clk 0:02:21]} 20... cxd4 {[%clk 0:02:34.9]}
21. Nxd4 {[%clk 0:02:20.3]} 21... Na5 {[%clk 0:02:12.3]} 22. Bxb7 {[%clk
0:01:47.2]} 22... Nxb7 {[%clk 0:02:13.2]} 23. Nd3 {[%clk 0:01:39.2]} 23... Bd6
{[%clk 0:01:34.2]} 24. Nc6 {[%clk 0:01:33.8]} 24... Re8 {[%clk 0:01:29.6]} 25.
Bd4 {[%clk 0:01:06.1]} 25... Qc7 {[%clk 0:01:25.4]} 26. Nce5 {[%clk 0:01:06.4]}
26... Qxc2 {[%clk 0:01:20]} 27. Rxc2 {[%clk 0:01:06.7]} 27... Rc7 {[%clk
0:01:14.6]} 28. Rxc7 {[%clk 0:01:06.1]} 28... Bxc7 {[%clk 0:01:15.5]} 29. Rc1
{[%clk 0:01:06.3]} 29... Bd6 {[%clk 0:01:04.3]} 30. Rc6 {[%clk 0:01:00.4]} 30...
Bxa3 {[%clk 0:01:00.2]} 31. Rxa6 {[%clk 0:00:57.3]} 31... Bf8 {[%clk 0:00:44.3]}
32. Ra7 {[%clk 0:00:44.1]} 32... Nd6 {[%clk 0:00:44.9]} 33. Nc5 {[%clk
0:00:37.5]} 33... Re7 {[%clk 0:00:41.9]} 34. Ra8 {[%clk 0:00:35.4]} 34... Re8
{[%clk 0:00:42.3]} 35. Ra7 {[%clk 0:00:33.2]} 35... Re7 {[%clk 0:00:42]} 36. Ra6
{[%clk 0:00:26.4]} 36... Nf5 {[%clk 0:00:40]} 37. Nc6 {[%clk 0:00:21.6]} 37...
Rc7 {[%clk 0:00:39.8]} 38. Be5 {[%clk 0:00:20.8]} 38... Rc8 {[%clk 0:00:33.2]}
39. Bxf6 {[%clk 0:00:18.6]} 39... gxf6 {[%clk 0:00:28.4]} 40. Ne4 {[%clk
0:00:14.6]} 40... Kg7 {[%clk 0:00:26.2]} 41. Rb6 {[%clk 0:00:11]} 41... b4
{[%clk 0:00:15.8]} 42. Kg2 {[%clk 0:00:09.1]} 42... Ra8 {[%clk 0:00:13]} 43.
Nxb4 {[%clk 0:00:08.9]} 43... Ra3 {[%clk 0:00:13.6]} 44. Nc6 {[%clk 0:00:08]}
44... Ra2 {[%clk 0:00:14.1]} 45. Kf3 {[%clk 0:00:07.3]} 45... Rb2 {[%clk
0:00:10.7]} 46. Rb7 {[%clk 0:00:07.3]} 46... Nd6 {[%clk 0:00:07.7]} 47. Nxd6
{[%clk 0:00:07.3]} 47... Bxd6 {[%clk 0:00:08.6]} 48. Nd8 {[%clk 0:00:07.9]}
48... Kg6 {[%clk 0:00:09.2]} 49. Nxf7 {[%clk 0:00:06]} 49... Bf8 {[%clk
0:00:09.4]} 50. Nd8 {[%clk 0:00:05.9]} 50... Bb4 {[%clk 0:00:09.7]} 51. Rxb4
{[%clk 0:00:04.2]} 51... Kg7 {[%clk 0:00:06.4]} 52. Nxe6+ {[%clk 0:00:04.4]}
52... Kf7 {[%clk 0:00:07.3]} 53. Nf4 {[%clk 0:00:04.7]} 53... Rc2 {[%clk
0:00:07.9]} 54. Rb7+ {[%clk 0:00:04.5]} 54... Ke8 {[%clk 0:00:07.8]} 1-0

[Event "Early-Titled-Tuesday-Blitz-March-19-2024"]
[Site "Chess.com"]
[Date "2024.03.19"]
[Round "10"]
[White "FMVolodymyrSakun"]
[Black "Eagle_2019"]
[Result "0-1"]
[WhiteElo "2644"]
[BlackElo "2859"]
[TimeControl "180+1"]
[EndTime "9:56:30 PDT"]
[Termination "Eagle_2019 won by resignation"]

1. d4 {[%clk 0:03:00.9]} 1... d5 {[%clk 0:02:59.3]} 2. Nf3 {[%clk 0:03:00.3]}
2... e6 {[%clk 0:02:50.8]} 3. e3 {[%clk 0:02:59.8]} 3... f5 {[%clk 0:02:45.2]}
4. c4 {[%clk 0:02:55.8]} 4... Nf6 {[%clk 0:02:33.8]} 5. Nbd2 {[%clk 0:02:51.1]}
5... c6 {[%clk 0:02:30.2]} 6. Be2 {[%clk 0:02:47.5]} 6... Bd6 {[%clk 0:02:26.3]}
7. b3 {[%clk 0:02:41.4]} 7... O-O {[%clk 0:02:20.1]} 8. Bb2 {[%clk 0:02:40.3]}
8... Ne4 {[%clk 0:02:20]} 9. O-O {[%clk 0:02:37.7]} 9... Nd7 {[%clk 0:02:19.6]}
10. Nxe4 {[%clk 0:02:18.7]} 10... fxe4 {[%clk 0:02:16.6]} 11. Ne5 {[%clk
0:02:05.1]} 11... Qg5 {[%clk 0:02:13.5]} 12. f4 {[%clk 0:01:33.1]} 12... exf3
{[%clk 0:01:59]} 13. Nxf3 {[%clk 0:01:32.8]} 13... Qxe3+ {[%clk 0:01:55.1]} 14.
Kh1 {[%clk 0:01:32.9]} 14... Nf6 {[%clk 0:01:51.3]} 15. Bc1 {[%clk 0:01:24.8]}
15... Qe4 {[%clk 0:01:32.8]} 16. Bd3 {[%clk 0:00:52.2]} 16... Qg4 {[%clk
0:01:30.7]} 17. Qe2 {[%clk 0:00:33.6]} 17... Ne4 {[%clk 0:01:26]} 18. Re1 {[%clk
0:00:29.2]} 18... Nf6 {[%clk 0:01:09]} 19. Be3 {[%clk 0:00:18.4]} 19... Qh5
{[%clk 0:01:04.1]} 20. Ne5 {[%clk 0:00:17.3]} 20... Qxe2 {[%clk 0:01:01.1]} 21.
Rxe2 {[%clk 0:00:18.2]} 21... a5 {[%clk 0:00:54.8]} 22. Rf1 {[%clk 0:00:16.4]}
22... a4 {[%clk 0:00:51.1]} 23. Ref2 {[%clk 0:00:16.1]} 23... axb3 {[%clk
0:00:48.2]} 24. axb3 {[%clk 0:00:17]} 24... Ra3 {[%clk 0:00:42.6]} 25. Bc2
{[%clk 0:00:15.8]} 25... c5 {[%clk 0:00:40.3]} 26. Bc1 {[%clk 0:00:12.5]} 26...
Ra2 {[%clk 0:00:37.6]} 27. Nf3 {[%clk 0:00:04.8]} 27... Ne4 {[%clk 0:00:34]} 28.
Bxe4 {[%clk 0:00:04.3]} 28... dxe4 {[%clk 0:00:34.9]} 29. Rxa2 {[%clk
0:00:03.8]} 29... exf3 {[%clk 0:00:30.2]} 30. Rxf3 {[%clk 0:00:04.7]} 30... Rd8
{[%clk 0:00:30.4]} 31. Be3 {[%clk 0:00:03.4]} 31... cxd4 {[%clk 0:00:28.1]} 32.
Bf2 {[%clk 0:00:02.2]} 32... e5 {[%clk 0:00:26.7]} 33. h3 {[%clk 0:00:02.6]}
33... e4 {[%clk 0:00:24.6]} 34. Rg3 {[%clk 0:00:02.2]} 34... e3 {[%clk
0:00:20.7]} 35. Rxe3 {[%clk 0:00:01.3]} 35... dxe3 {[%clk 0:00:19.5]} 36. Bxe3
{[%clk 0:00:02.2]} 36... Re8 {[%clk 0:00:19.6]} 37. Bf2 {[%clk 0:00:02.1]} 37...
Rf8 {[%clk 0:00:18.2]} 38. g3 {[%clk 0:00:02.4]} 38... Bd7 {[%clk 0:00:17.9]}
39. Kh2 {[%clk 0:00:02.4]} 39... Bc6 {[%clk 0:00:18.1]} 40. c5 {[%clk
0:00:02.8]} 40... Bc7 {[%clk 0:00:18.3]} 41. b4 {[%clk 0:00:03.3]} 41... Rd8
{[%clk 0:00:18.4]} 42. Rb2 {[%clk 0:00:03.5]} 42... Rd1 {[%clk 0:00:18.3]} 43.
Bg1 {[%clk 0:00:02.2]} 43... Bxg3+ {[%clk 0:00:16]} 44. Kxg3 {[%clk 0:00:02.4]}
44... Rxg1+ {[%clk 0:00:16.4]} 45. Kf4 {[%clk 0:00:03]} 45... Rh1 {[%clk
0:00:16]} 46. b5 {[%clk 0:00:02.7]} 46... Bd5 {[%clk 0:00:16.4]} 47. Rd2 {[%clk
0:00:02.8]} 47... Be6 {[%clk 0:00:14.1]} 48. Rd8+ {[%clk 0:00:02.7]} 48... Kf7
{[%clk 0:00:14.1]} 49. Rb8 {[%clk 0:00:02.8]} 49... Bd5 {[%clk 0:00:14.2]} 50.
Rd8 {[%clk 0:00:02.9]} 50... Bg2 {[%clk 0:00:13.7]} 51. Ke5 {[%clk 0:00:03]}
51... Bxh3 {[%clk 0:00:13.4]} 52. Rb8 {[%clk 0:00:02.6]} 52... Bg2 {[%clk
0:00:13.6]} 53. Rc8 {[%clk 0:00:02.6]} 53... Rb1 {[%clk 0:00:13.3]} 54. Rc7+
{[%clk 0:00:02.5]} 54... Kg6 {[%clk 0:00:13.7]} 55. b6 {[%clk 0:00:02.7]} 55...
Bc6 {[%clk 0:00:13]} 56. Rxc6+ {[%clk 0:00:01.5]} 56... bxc6 {[%clk 0:00:13.1]}
57. Kd6 {[%clk 0:00:02.1]} 57... h5 {[%clk 0:00:13.3]} 58. Kxc6 {[%clk
0:00:02.5]} 58... h4 {[%clk 0:00:13.7]} 59. b7 {[%clk 0:00:03]} 59... h3 {[%clk
0:00:13.4]} 60. Kc7 {[%clk 0:00:03.5]} 60... h2 {[%clk 0:00:13.7]} 61. c6 {[%clk
0:00:03.9]} 61... h1=Q {[%clk 0:00:14]} 62. Kd7 {[%clk 0:00:04.2]} 62... Qd5+
{[%clk 0:00:13.7]} 63. Kc7 {[%clk 0:00:04.3]} 63... Qe5+ {[%clk 0:00:14.1]} 0-1

[Event "Early-Titled-Tuesday-Blitz-March-19-2024"]
[Site "Chess.com"]
[Date "2024.03.19"]
[Round "10"]
[White "ActorXu"]
[Black "viktorskliarov"]
[Result "1-0"]
[WhiteElo "2838"]
[BlackElo "2613"]
[TimeControl "180+1"]
[EndTime "9:56:30 PDT"]
[Termination "ActorXu won by resignation"]

1. e4 {[%clk 0:03:00.9]} 1... c5 {[%clk 0:02:59.7]} 2. Nf3 {[%clk 0:03:00.8]}
2... Nc6 {[%clk 0:02:58.5]} 3. Bb5 {[%clk 0:03:00.4]} 3... e6 {[%clk 0:02:59]}
4. O-O {[%clk 0:02:57.5]} 4... Nge7 {[%clk 0:02:59.4]} 5. d4 {[%clk 0:02:55.9]}
5... cxd4 {[%clk 0:02:59.4]} 6. Nxd4 {[%clk 0:02:56.5]} 6... Qb6 {[%clk
0:02:55.9]} 7. Bxc6 {[%clk 0:02:51.1]} 7... dxc6 {[%clk 0:02:48.7]} 8. Nc3
{[%clk 0:02:48.3]} 8... e5 {[%clk 0:02:46.9]} 9. Nf3 {[%clk 0:02:44.4]} 9... Ng6
{[%clk 0:02:46.9]} 10. a3 {[%clk 0:02:38.7]} 10... Be7 {[%clk 0:02:41.1]} 11.
Nd2 {[%clk 0:02:30.2]} 11... O-O {[%clk 0:02:37.4]} 12. Nc4 {[%clk 0:02:29.7]}
12... Qc7 {[%clk 0:02:37.2]} 13. Be3 {[%clk 0:02:28.2]} 13... Be6 {[%clk
0:02:33.7]} 14. Nd2 {[%clk 0:02:28]} 14... Rad8 {[%clk 0:02:15.6]} 15. Ne2
{[%clk 0:02:26.1]} 15... Rd7 {[%clk 0:01:37.7]} 16. c3 {[%clk 0:02:19.5]} 16...
Rfd8 {[%clk 0:01:35.9]} 17. Qc2 {[%clk 0:02:19.7]} 17... h6 {[%clk 0:01:18.9]}
18. Rfd1 {[%clk 0:02:18.8]} 18... Bg5 {[%clk 0:01:14.8]} 19. Nf1 {[%clk
0:02:17.3]} 19... Rxd1 {[%clk 0:01:03.4]} 20. Rxd1 {[%clk 0:02:18.2]} 20... Rxd1
{[%clk 0:01:03.5]} 21. Qxd1 {[%clk 0:02:18.3]} 21... Bxe3 {[%clk 0:01:04.1]} 22.
Nxe3 {[%clk 0:02:17.5]} 22... Qd7 {[%clk 0:01:04.6]} 23. Qxd7 {[%clk 0:02:17]}
23... Bxd7 {[%clk 0:01:04.2]} 24. f3 {[%clk 0:02:17.6]} 24... f6 {[%clk
0:01:00]} 25. Kf2 {[%clk 0:02:18.1]} 25... Kf7 {[%clk 0:00:59.5]} 26. Nc4 {[%clk
0:02:18]} 26... b6 {[%clk 0:00:55.8]} 27. Ke3 {[%clk 0:02:17.9]} 27... Ke7
{[%clk 0:00:54.9]} 28. b4 {[%clk 0:02:17.5]} 28... Be6 {[%clk 0:00:52.9]} 29.
Nd2 {[%clk 0:02:17.5]} 29... Kd6 {[%clk 0:00:51.3]} 30. c4 {[%clk 0:02:16.9]}
30... b5 {[%clk 0:00:23.6]} 31. c5+ {[%clk 0:02:16.1]} 31... Ke7 {[%clk
0:00:22.2]} 32. g3 {[%clk 0:02:15.3]} 32... Nf8 {[%clk 0:00:19.3]} 33. f4 {[%clk
0:02:14.8]} 33... Nd7 {[%clk 0:00:19.7]} 34. Nf3 {[%clk 0:02:13.8]} 34... Bc4
{[%clk 0:00:19.5]} 35. Nc3 {[%clk 0:02:11.7]} 35... g5 {[%clk 0:00:19.4]} 36. h4
{[%clk 0:02:09.4]} 36... g4 {[%clk 0:00:17.9]} 37. Nd2 {[%clk 0:02:06]} 37...
Bf7 {[%clk 0:00:17.7]} 38. Kf2 {[%clk 0:02:03.9]} 38... h5 {[%clk 0:00:17.8]}
39. Nf1 {[%clk 0:02:04.6]} 39... Be6 {[%clk 0:00:15.9]} 40. Ne3 {[%clk
0:02:04.1]} 40... Nf8 {[%clk 0:00:14.9]} 41. Ne2 {[%clk 0:02:02.9]} 41... Nd7
{[%clk 0:00:14.7]} 42. Ke1 {[%clk 0:02:02.2]} 42... Kf8 {[%clk 0:00:14.2]} 43.
Kd2 {[%clk 0:02:02.5]} 43... Ke7 {[%clk 0:00:14.7]} 44. Kc3 {[%clk 0:02:02.5]}
44... Kf8 {[%clk 0:00:15]} 45. Nc1 {[%clk 0:02:00.6]} 45... Ke7 {[%clk
0:00:14.9]} 46. Nd3 {[%clk 0:02:01.2]} 46... Kf8 {[%clk 0:00:14.4]} 47. Kb2
{[%clk 0:01:57]} 47... Ke7 {[%clk 0:00:14.4]} 48. a4 {[%clk 0:01:57.2]} 48... a6
{[%clk 0:00:14.8]} 49. axb5 {[%clk 0:01:44.8]} 49... axb5 {[%clk 0:00:14.6]} 50.
Kc3 {[%clk 0:01:45.3]} 50... Kf8 {[%clk 0:00:14.6]} 51. Ng2 {[%clk 0:01:45]}
51... Ke7 {[%clk 0:00:14.6]} 52. Nc1 {[%clk 0:01:45.3]} 52... Kf8 {[%clk
0:00:14.7]} 53. Nb3 {[%clk 0:01:45.7]} 53... Bxb3 {[%clk 0:00:12.5]} 54. Kxb3
{[%clk 0:01:45.9]} 54... Ke7 {[%clk 0:00:11.4]} 55. Kc3 {[%clk 0:01:46.3]} 55...
Ke6 {[%clk 0:00:11.4]} 56. Kd3 {[%clk 0:01:44.7]} 56... Nf8 {[%clk 0:00:11.6]}
57. Ke3 {[%clk 0:01:42.9]} 57... Ke7 {[%clk 0:00:05]} 58. Ne1 {[%clk 0:01:43]}
58... Ne6 {[%clk 0:00:05.2]} 59. Nd3 {[%clk 0:01:43.1]} 59... exf4+ {[%clk
0:00:04.7]} 60. gxf4 {[%clk 0:01:40.4]} 60... Nf8 {[%clk 0:00:02.2]} 61. Kf2
{[%clk 0:01:39]} 61... Ke6 {[%clk 0:00:02.6]} 62. Nc1 {[%clk 0:01:37.4]} 62...
f5 {[%clk 0:00:02.9]} 63. exf5+ {[%clk 0:01:05.7]} 63... Kxf5 {[%clk 0:00:02.9]}
64. Ne2 {[%clk 0:01:04.3]} 64... Ne6 {[%clk 0:00:02.9]} 65. Ke3 {[%clk
0:01:02.3]} 65... Kg6 {[%clk 0:00:02.2]} 66. Ke4 {[%clk 0:01:01]} 66... Ng7
{[%clk 0:00:02.4]} 67. Ng3 {[%clk 0:00:58.1]} 67... Kf6 {[%clk 0:00:02.8]} 68.
f5 {[%clk 0:00:54.4]} 68... Ke7 {[%clk 0:00:02.7]} 69. Ke5 {[%clk 0:00:54.2]}
69... Kf7 {[%clk 0:00:03.2]} 70. f6 {[%clk 0:00:50.6]} 70... Ne8 {[%clk
0:00:03.3]} 71. Nxh5 {[%clk 0:00:51]} 71... Nxf6 {[%clk 0:00:02.5]} 72. Nxf6
{[%clk 0:00:45.6]} 72... g3 {[%clk 0:00:03]} 73. Ne4 {[%clk 0:00:46]} 73... g2
{[%clk 0:00:03.6]} 74. Ng5+ {[%clk 0:00:46.7]} 74... Kg6 {[%clk 0:00:04.1]} 75.
Nf3 {[%clk 0:00:47]} 75... Kh5 {[%clk 0:00:04.7]} 76. Kf5 {[%clk 0:00:47]} 76...
g1=Q {[%clk 0:00:03]} 77. Nxg1 {[%clk 0:00:47.2]} 77... Kxh4 {[%clk 0:00:03.9]}
78. Ke5 {[%clk 0:00:47.7]} 1-0

[Event "Early-Titled-Tuesday-Blitz-March-19-2024"]
[Site "Chess.com"]
[Date "2024.03.19"]
[Round "10"]
[White "Statham_01"]
[Black "Mandaloriana19"]
[Result "1-0"]
[WhiteElo "2588"]
[BlackElo "2424"]
[TimeControl "180+1"]
[EndTime "9:56:30 PDT"]
[Termination "Statham_01 won on time"]

1. Na3 {[%clk 0:03:00.9]} 1... Na6 {[%clk 0:02:59.3]} 2. e4 {[%clk 0:03:00.4]}
2... g6 {[%clk 0:02:56.2]} 3. d4 {[%clk 0:02:59.7]} 3... Bg7 {[%clk 0:02:56.4]}
4. c3 {[%clk 0:02:59.5]} 4... d6 {[%clk 0:02:55.1]} 5. h4 {[%clk 0:02:59.5]}
5... c5 {[%clk 0:02:54.6]} 6. Bxa6 {[%clk 0:02:56.1]} 6... bxa6 {[%clk
0:02:54.8]} 7. dxc5 {[%clk 0:02:57]} 7... dxc5 {[%clk 0:02:49.4]} 8. Qxd8+
{[%clk 0:02:57.9]} 8... Kxd8 {[%clk 0:02:50.2]} 9. Be3 {[%clk 0:02:58.6]} 9...
Bb7 {[%clk 0:02:48.8]} 10. f3 {[%clk 0:02:54.4]} 10... Rc8 {[%clk 0:02:48.7]}
11. O-O-O+ {[%clk 0:02:54.3]} 11... Ke8 {[%clk 0:02:49.2]} 12. Ne2 {[%clk
0:02:52.3]} 12... Bh6 {[%clk 0:02:49.4]} 13. Nf4 {[%clk 0:02:45.5]} 13... Nf6
{[%clk 0:02:48]} 14. g4 {[%clk 0:02:39.8]} 14... e5 {[%clk 0:02:42.4]} 15. Nd5
{[%clk 0:02:31.9]} 15... Bxe3+ {[%clk 0:02:41.4]} 16. Nxe3 {[%clk 0:02:32.8]}
16... Ke7 {[%clk 0:02:37.3]} 17. g5 {[%clk 0:02:25.7]} 17... Nd7 {[%clk
0:02:22.3]} 18. Nac4 {[%clk 0:02:22.5]} 18... h6 {[%clk 0:02:11.1]} 19. gxh6
{[%clk 0:02:15.7]} 19... Rxh6 {[%clk 0:02:10.7]} 20. h5 {[%clk 0:02:02.7]} 20...
Rch8 {[%clk 0:02:01.6]} 21. Nd6 {[%clk 0:01:54.2]} 21... Bc6 {[%clk 0:01:57.8]}
22. Nec4 {[%clk 0:01:04.9]} 22... Rxh5 {[%clk 0:01:46.6]} 23. Rxh5 {[%clk
0:01:04.6]} 23... Rxh5 {[%clk 0:01:46.7]} 24. Na5 {[%clk 0:00:58.2]} 24... Bb5
{[%clk 0:01:38.8]} 25. c4 {[%clk 0:00:56.5]} 25... Ba4 {[%clk 0:01:32.8]} 26. b3
{[%clk 0:00:56.6]} 26... Rh3 {[%clk 0:01:29.2]} 27. Rd3 {[%clk 0:00:47.8]} 27...
Nb6 {[%clk 0:01:23.8]} 28. bxa4 {[%clk 0:00:45.3]} 28... Nxa4 {[%clk 0:01:24.2]}
29. Nc8+ {[%clk 0:00:45.5]} 29... Kf6 {[%clk 0:01:22.6]} 30. Nb3 {[%clk
0:00:39.9]} 30... Rh1+ {[%clk 0:01:20.3]} 31. Kc2 {[%clk 0:00:38.1]} 31... Rh2+
{[%clk 0:01:19.5]} 32. Rd2 {[%clk 0:00:38.6]} 32... Rh3 {[%clk 0:01:19.7]} 33.
Rf2 {[%clk 0:00:34.2]} 33... Ke6 {[%clk 0:01:14.5]} 34. Nxa7 {[%clk 0:00:34.5]}
34... Kd7 {[%clk 0:01:13.8]} 35. f4 {[%clk 0:00:30]} 35... exf4 {[%clk
0:00:47.5]} 36. Rxf4 {[%clk 0:00:30.9]} 36... Rh7 {[%clk 0:00:46.2]} 37. Rf6
{[%clk 0:00:28.6]} 37... Ke7 {[%clk 0:00:39.7]} 38. Rxa6 {[%clk 0:00:26.8]}
38... Rh2+ {[%clk 0:00:40.4]} 39. Kc1 {[%clk 0:00:17.3]} 39... Nc3 {[%clk
0:00:39.5]} 40. Nxc5 {[%clk 0:00:14.2]} 40... Nxa2+ {[%clk 0:00:38.9]} 41. Kd1
{[%clk 0:00:14.2]} 41... Nb4 {[%clk 0:00:29]} 42. Nc8+ {[%clk 0:00:13.2]} 42...
Kf8 {[%clk 0:00:27.5]} 43. Rb6 {[%clk 0:00:11]} 43... Na2 {[%clk 0:00:27.5]} 44.
Rb8 {[%clk 0:00:10.4]} 44... Kg7 {[%clk 0:00:26]} 45. Rb7 {[%clk 0:00:10.6]}
45... Kf6 {[%clk 0:00:23.6]} 46. Nd7+ {[%clk 0:00:09.2]} 46... Kg5 {[%clk
0:00:20.6]} 47. Ne5 {[%clk 0:00:08.6]} 47... Nc3+ {[%clk 0:00:16.7]} 48. Kc1
{[%clk 0:00:05]} 48... Ne2+ {[%clk 0:00:15.9]} 49. Kb2 {[%clk 0:00:04.3]} 49...
Ng3+ {[%clk 0:00:12.3]} 50. Ka3 {[%clk 0:00:04.2]} 50... Rh3 {[%clk 0:00:03]}
51. Nxf7+ {[%clk 0:00:04.4]} 51... Kh5 {[%clk 0:00:02.2]} 52. Kb4 {[%clk
0:00:05.3]} 52... Nxe4 {[%clk 0:00:02.3]} 53. Nfd6 {[%clk 0:00:06.2]} 53... Nd2
{[%clk 0:00:01.6]} 54. Rh7+ {[%clk 0:00:06.2]} 54... Kg4 {[%clk 0:00:01.4]} 55.
Rxh3 {[%clk 0:00:07.1]} 55... Kxh3 {[%clk 0:00:02.3]} 56. c5 {[%clk 0:00:08]}
56... g5 {[%clk 0:00:02.9]} 57. c6 {[%clk 0:00:07.5]} 57... g4 {[%clk
0:00:03.5]} 58. Nf5 {[%clk 0:00:05.9]} 58... Nf3 {[%clk 0:00:02.6]} 59. Ncd6
{[%clk 0:00:03.7]} 1-0